Cogmind - Beta 10.2 @@@ ROGUE MODE // 2021.10.21 @ 22:34:10 Player: Bebob Result: Destroyed by G-47 Trooper with Particle Gun Performance ------------- Evolutions (0) 0 Regions Visited (4) 800 Robots Destroyed (13) 65 Value Destroyed (366) 366 Prototype IDs (23) 460 Alien Tech Used (0) 0 Bonus (300) 300 TOTAL SCORE: 1991 Bonus ------- Aligned with FarCom 300 Cogmind --------- Core Integrity 0/250 Matter 300/300 Energy 250/250 System Corruption 2% Temperature Cool (9) Movement Core (150) Ox2 Location -9/Mines Parts ------- > --- POWER (1) -------- Ion Engine > --- PROPULSION (2) --- (None) > --- UTILITY (2) ------ (None) > --- WEAPON (2) ------- Hammer > --- INVENTORY (4) ---- Aluminum Leg AWS/Autocannon Peak State ------------ > --- POWER ------------ Ion Engine > --- PROPULSION ------- Aluminum Leg Aluminum Leg > --- UTILITY ---------- Small Storage Unit > --- WEAPON ----------- Medium Laser Light Assault Rifle > --- INVENTORY -------- Ion Engine Medium Laser [Rating: 6] Favorites ----------- Power Ion Engine Engine Ion Engine Propulsion Aluminum Leg Leg Aluminum Leg Flight Unit Flight Unit Utility Small Storage Unit Storage Small Storage Unit Weapon Hammer Energy Gun Medium Laser Ballistic Gun Light Assault Rifle Special Weapon Welding Torch Impact Weapon Hammer Build | -11 -10 -10 -10 -9 ------- Run | Scr Mat Min Exi Min Slots Evolved . | . . . . . Power . | . . . . . Propulsion . | . . . . . Utility . | . . . . . Weapon . | . . . . . Parts Attached 19 | 6 9 2 2 . Power 4 | 1 2 . 1 . Engine 4 | 1 2 . 1 . Core . | . . . . . Reactor . | . . . . . Propulsion 8 | 2 3 2 1 . Treads . | . . . . . Leg 4 | 2 1 . 1 . Wheel . | . . . . . Hover . | . . . . . Flight 4 | . 2 2 . . Utility 1 | 1 . . . . Device . | . . . . . Storage 1 | 1 . . . . Processor . | . . . . . Hackware . | . . . . . Protection . | . . . . . Artifact . | . . . . . Weapon 6 | 2 4 . . . Energy Gun 2 | 1 1 . . . Energy Cannon . | . . . . . Ballistic Gun 1 | 1 . . . . Ballistic Cannon . | . . . . . Launcher . | . . . . . Special Weapon 2 | . 2 . . . Impact Weapon 1 | . 1 . . . Slashing Weapon . | . . . . . Piercing Weapon . | . . . . . Special Melee Weapon . | . . . . . Unidentified Prototypes . | . . . . . Parts Lost 8 | . 7 1 . . Power 2 | . 1 1 . . Propulsion 2 | . 2 . . . Utility . | . . . . . Weapon 4 | . 4 . . . Highest Loss Streak 6 | . 6 1 . . Average Slot Usage (%) 51 | . 68 52 30 28 Engine 13 | . 13 9 13 14 Leg 7 | . 14 . . . Flight 7 | . 11 28 2 . Storage 4 | . 8 . . . Energy Gun 5 | . 9 . . . Impact Weapon 10 | . 7 14 14 14 Naked Turns . | . . . . . Heaviest Build 13 | 12 13 5 7 7 Greatest Support 20 | 20 20 8 8 3 Greatest Overweight (x) 2 | 2 1 . 2 2 Average Overweight (x) . | . . . 1 2 Largest Inventory Capacity 6 | 6 6 4 4 4 Average Capacity 4 | 4 5 4 4 4 Most Carried 4 | 4 4 4 4 4 Average Carried 3 | 2 2 3 3 4 Final Capacity 6 | 6 4 4 4 4 Final Carried 4 | 2 4 3 4 4 Class Distribution -------------------- 100% | Mutant Dominant Class ---------------- Mutant | -10/Materials Mutant | -10/Mines Mutant | -10/Exiles Mutant | -9/Mines Resources | -11 -10 -10 -10 -9 ----------- Run | Scr Mat Min Exi Min Matter Collected 385 | 216 134 . 35 . Remotely . | . . . . . Salvage Created 439 | . 439 . . . Parts 14 | . 14 . . . Haulers Intercepted . | . . . . . Recyclers Shooed . | . . . . . Parts Field Recycled . | . . . . . Retrieved Matter . | . . . . . Parts Self-Destructed . | . . . . . Prevented . | . . . . . Kills | -11 -10 -10 -10 -9 ------- Run | Scr Mat Min Exi Min Combat Hostiles Destroyed 10 | . 10 . . . Melee 2 | . 2 . . . Guns 7 | . 7 . . . Classes Destroyed 4 | . 4 . . . Operator 2 | . 2 . . . Watcher 1 | . 1 . . . Swarmer 2 | . 2 . . . Grunt 8 | . 8 . . . Best Kill Streak 2 | . 2 . . . Combat Bots Only 2 | . 2 . . . Max Kills in Single Turn 1 | . 1 . . . Gunslinging . | . . . . . Exploded . | . . . . . Melee 1 | . 1 . . . Uniques/NPCs Destroyed . | . . . . . Combat | -11 -10 -10 -10 -9 -------- Run | Scr Mat Min Exi Min Damage Taken 902 | . 778 85 . 39 Core 251 | . 186 37 . 28 Absorbed by Shields . | . . . . . Core Remaining (%) 100 | 100 . . . . Volleys Fired 49 | . 49 . . . Largest 2 | . 2 . . . Hottest 100 | . 100 . . . Shots Fired 94 | . 94 . . . Gun 80 | . 80 . . . Cannon . | . . . . . Launcher . | . . . . . Special 14 | . 14 . . . Kinetic 18 | . 18 . . . Thermal 76 | . 76 . . . Explosive . | . . . . . Electromagnetic . | . . . . . Robot Hit Streak 8 | . 8 . . . Robot Miss Streak 5 | . 5 . . . Penetration Max . | . . . . . Secondary Targets . | . . . . . Shots Hit Robots 69 | . 69 . . . Core Hits 26 | . 26 . . . Critical Hits . | . . . . . Critical Kills . | . . . . . Critical Parts Destroyed . | . . . . . Melee Attacks 18 | . 18 . . . Impact 18 | . 18 . . . Slashing . | . . . . . Piercing . | . . . . . Sneak Attacks 3 | . 3 . . . Combat Hostiles . | . . . . . Follow-up Attacks . | . . . . . Damage Inflicted 838 | . 838 . . . Guns 561 | . 561 . . . Cannons . | . . . . . Explosions . | . . . . . Melee 238 | . 238 . . . Ramming . | . . . . . Kinetic 98 | . 98 . . . Thermal 502 | . 502 . . . Explosive . | . . . . . Electromagnetic . | . . . . . Impact 238 | . 238 . . . Slashing . | . . . . . Piercing . | . . . . . Highest Corruption 2 | . 2 2 2 2 Average Corruption 2 | . 2 2 2 2 Corruption Purged . | . . . . . Effects 19 | . 8 1 7 3 Message Errors 9 | . 5 1 2 1 Heat Flow Errors 2 | . . . 2 . Energy Discharges 3 | . . . 3 . Data Loss (minor) 4 | . 2 . . 2 Targeting Errors 1 | . 1 . . . Overload Shots . | . . . . . Overflow Damage 29 | . 29 . . . Projectiles . | . . . . . Explosions . | . . . . . Melee 29 | . 29 . . . Knockbacks . | . . . . . Impact . | . . . . . Kinetic . | . . . . . Secondary . | . . . . . Self-Inflicted Damage . | . . . . . Shots . | . . . . . Rammed . | . . . . . Targets Rammed . | . . . . . Kicked . | . . . . . Crushed . | . . . . . Highest Temperature 261 | . 261 . 257 . Average Temperature 80 | . 73 . 122 . Received Heat Transfer 432 | . 363 48 . 21 Siege Activations . | . . . . . Robots Corrupted . | . . . . . Combat Hostiles . | . . . . . Parts Fried 1 | . 1 . . . Impact Corruptions 3 | . 3 . . . Robots Melted . | . . . . . Combat Hostiles . | . . . . . Parts Melted 6 | . 6 . . . Heat Transferred 1669 | . 1669 . . . Parts Sabotaged . | . . . . . Parts Stolen . | . . . . . Parts Stripped . | . . . . . Power Chain Reactions . | . . . . . Missiles Intercepted . | . . . . . Alert | -11 -10 -10 -10 -9 ------- Run | Scr Mat Min Exi Min Peak Influence 208 | . 208 50 . . Initial 50 | . . 50 . . Average 53 | . 65 46 . . Maximum Alert Level 1 | . 1 . . . Low Security (%) 98 | 100 98 100 . 100 Level 1 1 | . 1 . . . Level 2 . | . . . . . Level 3 . | . . . . . Level 4 . | . . . . . Level 5 . | . . . . . High Security . | . . . . . Max Security . | . . . . . Squads Dispatched 2 | . 2 . . . Investigation 1 | . 1 . . . Extermination . | . . . . . Reinforcement 1 | . 1 . . . Assault . | . . . . . Garrison . | . . . . . Intercept . | . . . . . Construction Impeded . | . . . . . Haulers Reinforced . | . . . . . Stealth | -11 -10 -10 -10 -9 --------- Run | Scr Mat Min Exi Min Distress Signals 5 | . 5 . . . Communications Jammed . | . . . . . Distress Signals . | . . . . . Times Spotted 31 | . 24 4 . 3 Peak Tracking Total 5 | . 4 4 . 5 Tactical Retreats 3 | . 3 . . . Traps | -11 -10 -10 -10 -9 ------- Run | Scr Mat Min Exi Min Traps Triggered 1 | . 1 . . . Indirectly . | . . . . . Trap Hack Attempts . | . . . . . Triggered . | . . . . . Disarmed . | . . . . . Reprogrammed . | . . . . . Reused . | . . . . . Traps Extracted . | . . . . . Installed . | . . . . . Triggered . | . . . . . Machines | -11 -10 -10 -10 -9 ---------- Run | Scr Mat Min Exi Min Machines Disabled . | . . . . . Max in Single Turn . | . . . . . Machines Sabotaged . | . . . . . Garrisons Compromised . | . . . . . Overloaded Fab Kills . | . . . . . Fab Network Shutdowns . | . . . . . Hacking | -11 -10 -10 -10 -9 --------- Run | Scr Mat Min Exi Min Machines Accessed 6 | . 5 . 1 . Terminals 4 | . 4 . . . Fabricators . | . . . . . Repair Stations . | . . . . . Recycling Units 1 | . 1 . . . Scanalyzers . | . . . . . Garrison Access . | . . . . . Total Hacks 18 | . 17 . 1 . Successful 12 | . 11 . 1 . Failed 6 | . 6 . . . Catastrophic . | . . . . . Database Lockouts . | . . . . . Manual 14 | . 13 . 1 . Terminals 15 | . 15 . . . Fabricators . | . . . . . Repair Stations . | . . . . . Recycling Units 2 | . 2 . . . Scanalyzers . | . . . . . Garrison Access . | . . . . . Terminal Hacks 4 | . 3 . 1 . Reinforcement Status 1 | . 1 . . . Hauler Manifests 1 | . 1 . . . Zone Layout 1 | . 1 . . . EX-Prototype ID Bank 1 | . . . 1 . Fabricator Hacks . | . . . . . Repair Station Hacks . | . . . . . Recycling Unit Hacks . | . . . . . Scanalyzer . | . . . . . Garrison Access Hacks . | . . . . . Unauthorized Hacks 8 | . 8 . . . Terminals 7 | . 7 . . . Track 3 | . 3 . . . Botnet 3 | . 3 . . . Operators 1 | . 1 . . . Fabricators . | . . . . . Repair Stations . | . . . . . Recycling Units 1 | . 1 . . . Mask 1 | . 1 . . . Scanalyzers . | . . . . . Garrison Access . | . . . . . Data Cores Recovered 1 | . 1 . . . Used 1 | . 1 . . . Hacking Detections 4 | . 4 . . . Full Trace Events 1 | . 1 . . . Feedback Events . | . . . . . Feedback Blocked . | . . . . . Robot Schematics Acquired . | . . . . . Robots Built . | . . . . . Matter . | . . . . . Time . | . . . . . Total Robot Build Rating . | . . . . . Part Schematics Acquired . | . . . . . Parts Built . | . . . . . Matter . | . . . . . Time . | . . . . . Total Part Build Rating . | . . . . . Parts Repaired . | . . . . . Time . | . . . . . Parts Recycled . | . . . . . Recycled Matter . | . . . . . Retrieved Matter . | . . . . . Retrieved Components . | . . . . . Parts Scanalyzed . | . . . . . Part Schematics Acquired . | . . . . . Parts Damaged . | . . . . . Bothacking | -11 -10 -10 -10 -9 ------------ Run | Scr Mat Min Exi Min Used RIF Installer . | . . . . . Robots Hacked . | . . . . . Non-combat . | . . . . . Combat . | . . . . . Robot Hacks Applied . | . . . . . Relay Couplers Released . | . . . . . Robots Rewired . | . . . . . Allies Hacked . | . . . . . Hacks Repelled . | . . . . . Allies | -11 -10 -10 -10 -9 -------- Run | Scr Mat Min Exi Min Total Allies . | . . . . . Largest Group . | . . . . . Highest-Rated Group . | . . . . . Highest-Rated Ally . | . . . . . Total Orders . | . . . . . Ally Attacks . | . . . . . Total Damage . | . . . . . Kills . | . . . . . Allies Corrupted . | . . . . . Allies Melted . | . . . . . Intel | -11 -10 -10 -10 -9 ------- Run | Scr Mat Min Exi Min Robot Analysis Total . | . . . . . Derelict Logs Recovered . | . . . . . Drone Launches . | . . . . . Drone Recoveries . | . . . . . Exploration | -11 -10 -10 -10 -9 ------------- Run | Scr Mat Min Exi Min Turns Passed 1906 | 67 989 25 685 140 Spaces Moved 1289 | 48 557 59 536 89 Core 536 | 28 3 . 416 89 Treads . | . . . . . Legs 360 | 20 340 . . . Wheels . | . . . . . Hover . | . . . . . Flight 393 | . 214 59 120 . Fastest Speed 37 | 50 37 37 37 150 Average Speed 108 | 112 92 37 124 150 Slowest Speed 150 | 150 150 37 150 150 Overloaded Moves . | . . . . . Propulsion Burnouts . | . . . . . Robots Hopped 1 | . 1 . . . Cave-ins Triggered . | . . . . . Exploration Rate (%) 37 | 4 52 15 91 26 Regions Visited 4 Branch Regions 3 Pre-discovered Areas . | . . . . . Known Exits Taken . | . . . . . Unknown Exits Taken 4 | 1 1 1 1 . Scrap Searched . | . . . . . Spaces Dug . | . . . . . Terrain Destroyed . | . . . . . Melee . | . . . . . Projectile . | . . . . . AOE . | . . . . . Terrain Rammed . | . . . . . Walls Destroyed . | . . . . . Machines Disabled . | . . . . . Actions | -11 -10 -10 -10 -9 --------- Run | Scr Mat Min Exi Min Total 1681 | 61 909 61 554 96 Wait 284 | . 266 . 11 7 Move 1283 | 47 554 58 535 89 Hop 1 | . 1 . . . Pick Up 19 | 8 9 . 2 . Fast Attach 1 | . 1 . . . Attach 13 | 6 6 . 1 . Detach . | . . . . . Swap 5 | . 2 2 1 . Drop 8 | . 3 1 4 . Fire 49 | . 49 . . . Melee 18 | . 18 . . . Ram . | . . . . . Kick . | . . . . . Crush . | . . . . . Escape Stasis . | . . . . . Rewire . | . . . . . Trap . | . . . . . Miscellaneous . | . . . . . Route ------- -11/Scrapyard -10/Materials (discovered 2 exits: [*Mat] / [*Min]) -10/Mines -10/Exiles (discovered 2 exits: [*Min x2]) -9/Mines History --------- Turn | Location | Event 21 | -11/Scrapyard | Discovered new exit (range 15) 68 | -11/Scrapyard | Entered Materials 315 | -10/Materials | Build established: Mutant 514 | -10/Materials | Core integrity fell below 50% 563 | -10/Materials | Discovered new exit (range 12) 568 | -10/Materials | Lost 6 parts (1p2n3w) 612 | -10/Materials | Discovered new exit (range 16) 1057 | -10/Materials | Entered Mines 1059 | -10/Mines | Core integrity fell below 20% 1081 | -10/Mines | Deemed a non-threat by the Exiles lab entrance 1081 | -10/Mines | Discovered new exit (range 5) 1082 | -10/Mines | Entered Exiles 1092 | -10/Exiles | Met 8R-AWN 1098 | -10/Exiles | Met EX-HEX 1121 | -10/Exiles | Met EX-BIN 1126 | -10/Exiles | Aligned with FarCom system 1126 | -10/Exiles | Given EX-Vault access code 1135 | -10/Exiles | Opened EX-Vault 1146 | -10/Exiles | Found AWS/Autocannon 1177 | -10/Exiles | Warned to stay clear of 0b10 Research branches 1219 | -10/Exiles | Met EX-DEC 1335 | -10/Exiles | Discovered new exit (range 14) 1466 | -10/Exiles | Visited The Gauntlet 1749 | -10/Exiles | Discovered new exit (range 14) 1767 | -10/Exiles | Left Exiles lab with AWS/Autocannon 1767 | -10/Exiles | Entered Mines 1907 | -9/Mines | Destroyed by G-47 Trooper with Particle Gun Last Messages --------------- EX-DEC: Ah I see we have a visitor. One wrong move in here and I'll invert your atomic chain! 01221_ EX-DEC: "Oops, I hope HEX didn't hear that..." 01222_ OBH9=E9XJ7/C2F>E0YN0Z 4 SRNHV 01251_ Connecting with EX-Message Board... 01295_ System corrupted: Energy discharge (-85). 01324_ IJ86F9<>8V7X HM%&FBORGB3DLD6= 01904_ V>D0JNUH2AB5M5RLEJMOI2 [Achievement: This Is Interesting...] Map ----- +----------------------------------------------------+ | | | | | | | | | | | | | | | | | | | | | | | | | | | | | | | | | | | ??????????????????????????????????????? | | ???????????????????####???????????????? | | ??????????????????## ##??????????????? | | ????????????????### ##############?? | | ??????#######??## #?? | | ??????# #??# #?? | | ??????# #### ############# #?# | | ??????# # t ##???????????# ### | | ??????# g#g @ ##????????????# ## | | ?????# g######## #?????????????# | | ?????# ???????# #?????????????# """ | | ?????# #???????# #?????????????## """ | | ????# ???????# ???g?b????????# """ | | ????# g ???????###???????g??????# """ | | ????## g #???????????????????????# | | ?????# ???????????????????????? | | ?????# ???????????????????????### | | ?????# #?????????????????????????##### | | ????? #??????????????????????????????? | | ????? ???????????????????????????????? | | ???? ???????????????????????????????? | | ?????? ???????????????????????????????? | | ??????????????????????????????????????? | | ??????????????????????????????????????? | | ??????????????????????????????????????? | | ??????????????????????????????????????? | | ??????????????????????????????????????? | | ??????????????????????????????????????? | | ??????????????????????????????????????? | | ??????????????????????????????????????? | | ??????????????????????????????????????? | | ??????????????????????????????????????? | | ??????????????????????????????????????? | +----------------------------------------------------+ Best States ------------- Heat Dissipation 25 Energy Generation 10 Energy Capacity 250 Matter Stores 300 Matter Capacity 300 Sight Range 16 Terrain Scan Density 10 Evasion (%) 62 Item Schematics ----------------- None Robot Schematics ------------------ None Fabricated ------------ Nothing Alien Tech Used ----------------- None Achievements -------------- This Is Interesting... Challenges ------------ None Game ------ Seed StorageParticleTreads Manual? 0 Play Time 00:20:07 Cumulative 36.2 hours Start 2021.10.21 @ 21:56:11 End 2021.10.21 @ 22:34:10 Sessions 1 Manual Loads 0 Difficulty Rogue Special Mode None Game No. 22 Rogue 22 Adventurer 0 Explorer 0 Win Type - Total 0 Types 0/0/0/0/0/0/0/0/0 Lore% 25 Gallery% 19 Achievement% 15 Wizard Run 0 Options --------- ASCII 0 Keyboard 0 Movement Mouse Keybinds 0 Fullscreen 1 Font 36/Smallcaps Map View 76x50 Tactical HUD 1 Map Filters NONE Filters NONE Steam 1 RUN: 4c81a378-c702-4aa5-8dd1-55d37d26a8c6